fUSD/lending_fUSD_20250906
["ID","MTS","AMOUNT","RATE_DAILY","PERIOD"]
[383877506,1757153442672,-11452.12378734,0.0004752,2]
[383877508,1757153442681,-528.0,0.00047527,15]
[383877510,1757153442690,-498.0,0.00047672,2]
[383877512,1757153442701,-1815.60788318,0.000477,19]
[383877514,1757153442710,-910.81523194,0.00047742,15]
[383877516,1757153442719,-300.0,0.000478,17]
[383877518,1757153442728,-528.0,0.00047801,15]
[383877520,1757153442737,-1606.8961233,0.00047817,2]
[383877522,1757153442747,-358.5469894,0.00047837,2]
[383877523,1757153442756,-3079.20310569,0.00047872,3]
[383877524,1757153442765,-500.28586643,0.00047873,2]
[383877525,1757153442774,-500.0,0.00047873,10]
[383877526,1757153442783,-500.0,0.00047873,10]
[383877527,1757153442792,-3079.20310569,0.00047878,3]
[383877528,1757153442801,-3079.20310569,0.0004788,3]
[383877529,1757153442809,-27712.8279512,0.00047882,3]
[383877530,1757153442818,-12087.04,0.00047888,120]
[383877531,1757153442827,-9237.60931707,0.0004789,3]
[383877532,1757153442836,-199.0,0.00047891,7]
[383877533,1757153442845,-826.96211493,0.00047894,2]
[383877534,1757153442853,-333.34351872,0.00047899,30]
[383877535,1757153442862,-34547.0,0.000479,120]
[383877536,1757153442871,-600.0,0.000479,17]
[383877537,1757153442880,-498.0,0.00047946,2]
[383877538,1757153442889,-581.92746,0.00047967,40]
[383877540,1757153442898,-500.0,0.00047973,10]
[383877542,1757153442911,-12316.8124228,0.00047979,4]
[383877544,1757153442920,-18475.2186341,0.0004798,4]
[383877546,1757153442929,-3079.20310569,0.00047984,4]
[383877548,1757153442938,-226.59999693,0.00047986,120]
[383877550,1757153442947,-21554.4217398,0.00047989,4]
[383877552,1757153442957,-33871.2341626,0.0004799,4]
[383877554,1757153442966,-1802.0114524,0.00047994,2]
[383877556,1757153442975,-6496.5851807,0.00047994,2]
[383877558,1757153442984,-152.0,0.00047999,14]
[383877560,1757153442994,-152.0,0.00047999,14]
[383877562,1757153443003,-152.0,0.00047999,14]
[383877564,1757153443012,-152.0,0.00047999,14]
[383877566,1757153443024,-152.0,0.00047999,14]
[383877568,1757153443034,-152.0,0.00047999,14]
[383877570,1757153443044,-152.0,0.00047999,14]
[383877572,1757153443053,-152.0,0.00047999,14]
[383877574,1757153443063,-152.0,0.00047999,14]
[383877576,1757153443074,-152.0,0.00047999,14]
[383877578,1757153443083,-258.46724408,0.00047999,14]
[383877580,1757153443093,-154.0,0.00047999,14]
[383877582,1757153443105,-154.0,0.00047999,14]
[383877584,1757153443114,-154.0,0.00047999,14]
[383877586,1757153443123,-154.0,0.00047999,14]
[383877588,1757153443133,-152.0,0.00047999,14]
[383877590,1757153443143,-152.0,0.00047999,14]
[383877592,1757153443153,-1224.0,0.00047999,14]
[383877594,1757153443162,-152.0,0.00047999,14]
[383877596,1757153443172,-155.0,0.00047999,14]
[383877598,1757153443181,-1224.0,0.00047999,14]
[383877600,1757153443191,-152.0,0.00047999,14]
[383877602,1757153443209,-157.7458438,0.00047999,14]
[383877604,1757153443219,-1224.0,0.00047999,14]
[383877606,1757153443228,-152.0,0.00047999,14]
[383877608,1757153443237,-1224.0,0.00047999,14]
[383877610,1757153443246,-152.0,0.00047999,14]
[383877613,1757153443257,-189.18567382,0.00047999,14]
[383877615,1757153443266,-1224.0,0.00047999,14]
[383877617,1757153443275,-152.0,0.00047999,14]
[383877639,1757153443285,-1224.0,0.00047999,14]
[383877642,1757153443509,-152.0,0.00047999,14]
[383877644,1757153443519,-1224.0,0.00047999,14]
[383877646,1757153443528,-152.0,0.00047999,14]
[383877648,1757153443538,-294.84570016,0.00047999,14]
[383877650,1757153443548,-152.0,0.00047999,14]
[383877652,1757153443558,-152.0,0.00047999,14]
[383877654,1757153443567,-152.0,0.00047999,14]
[383877656,1757153443577,-152.0,0.00047999,14]
[383877658,1757153443587,-152.0,0.00047999,14]
[383877660,1757153443597,-221.55553866,0.00047999,14]
[383877662,1757153443606,-154.0,0.00047999,14]
[383877664,1757153443616,-154.0,0.00047999,14]
[383877666,1757153443625,-154.0,0.00047999,14]
[383877668,1757153443635,-154.0,0.00047999,14]
[383877670,1757153443644,-206.58494233,0.00047999,14]
[383877672,1757153443655,-200.0,0.00047999,120]
[383877675,1757153443666,-200.0,0.00047999,120]
[383877676,1757153443677,-200.0,0.00047999,120]
[383877679,1757153443687,-200.0,0.00047999,120]
[383877680,1757153443698,-151.0,0.00047999,120]
[383877683,1757153443708,-156.587,0.00047999,120]
[383877684,1757153443717,-200.0,0.00047999,120]
[383877687,1757153443727,-291.0373616,0.00047999,120]
[383877689,1757153443737,-200.0,0.00047999,120]
[383877691,1757153443747,-200.0,0.00047999,120]
[383877693,1757153443757,-200.0,0.00047999,120]
[383877695,1757153443767,-200.0,0.00047999,120]
[383877697,1757153443777,-197.87762863,0.00047999,120]
[383877699,1757153443786,-200.0,0.00047999,120]
[383877701,1757153443796,-200.0,0.00047999,120]
[383877703,1757153443805,-6888.0,0.00047999,120]
[383877705,1757153443815,-6412.14294304,0.00047999,120]
[383877707,1757153443824,-2500.0,0.00047999,120]
[383877709,1757153443834,-250.0,0.00047999,120]
[383877711,1757153443843,-250.0,0.00047999,120]
[383877712,1757153443853,-250.0,0.00047999,120]
[383877714,1757153443863,-250.0,0.00047999,120]
[383877716,1757153443872,-250.0,0.00047999,120]
[383877718,1757153443882,-200.0,0.00047999,120]
[383877720,1757153443892,-500.0,0.00047999,120]
[383877722,1757153443901,-500.0,0.00047999,120]
[383877725,1757153443911,-500.0,0.00047999,120]
[383877727,1757153443920,-500.0,0.00047999,120]
[383877729,1757153443930,-500.0,0.00047999,120]
[383877731,1757153443940,-564.30141647,0.00047999,120]
[383877733,1757153443950,-151.0,0.00047999,120]
[383877736,1757153443962,-500.0,0.00047999,120]
[383877738,1757153443971,-200.0,0.00047999,120]
[383877740,1757153443981,-250.0,0.00047999,120]
[383877743,1757153443992,-151.0,0.00047999,120]
[383877744,1757153444001,-250.0,0.00047999,120]
[383877747,1757153444012,-151.0,0.00047999,120]
[383877749,1757153444023,-500.0,0.00047999,120]
[383877751,1757153444034,-207.4,0.00047999,120]
[383877753,1757153444044,-250.0,0.00047999,120]
[383877755,1757153444054,-600.0,0.00047999,120]
[383877757,1757153444063,-160.0,0.00047999,120]
[383877759,1757153444073,-151.0,0.00047999,120]
[383877761,1757153444083,-250.0,0.00047999,120]
[383877763,1757153444092,-151.0,0.00047999,120]
[383877765,1757153444103,-500.0,0.00047999,120]
[383877767,1757153444113,-250.0,0.00047999,120]
[383877769,1757153444123,-600.0,0.00047999,120]
[383877771,1757153444132,-160.0,0.00047999,120]
[383877773,1757153444142,-215.0738,0.00047999,120]
[383877775,1757153444151,-250.0,0.00047999,120]
[383877777,1757153444161,-151.0,0.00047999,120]
[383877779,1757153444170,-151.0,0.00047999,120]
[383877781,1757153444180,-500.0,0.00047999,120]
[383877783,1757153444190,-223.0315306,0.00047999,120]
[383877785,1757153444199,-250.0,0.00047999,120]
[383877787,1757153444208,-600.0,0.00047999,120]
[383877789,1757153444218,-151.0,0.00047999,120]
[383877791,1757153444227,-250.0,0.00047999,120]
[383877793,1757153444236,-500.0,0.00047999,120]
[383877795,1757153444246,-160.0,0.00047999,120]
[383877797,1757153444255,-250.0,0.00047999,120]
[383877799,1757153444265,-231.28369723,0.00047999,120]
[383877801,1757153444274,-600.0,0.00047999,120]
[383877803,1757153444283,-151.0,0.00047999,120]
[383877805,1757153444293,-250.0,0.00047999,120]
[383877807,1757153444301,-500.0,0.00047999,120]
[383877809,1757153444311,-160.0,0.00047999,120]
[383877811,1757153444321,-250.0,0.00047999,120]
[383877813,1757153444330,-239.84119403,0.00047999,120]
[383877815,1757153444341,-151.8384098,0.00047999,120]
[383877817,1757153444350,-250.0,0.00047999,120]
[383877819,1757153444360,-500.0,0.00047999,120]
[383877821,1757153444371,-248.71531821,0.00047999,120]
[383877823,1757153444381,-160.0,0.00047999,120]
[383877825,1757153444390,-500.0,0.00047999,120]
[383877827,1757153444400,-257.91778498,0.00047999,120]
[383877829,1757153444409,-160.0,0.00047999,120]
[383877831,1757153444419,-500.0,0.00047999,120]
[383877833,1757153444428,-600.0,0.00047999,120]
[383877835,1757153444437,-267.46074303,0.00047999,120]
[383877838,1757153444447,-160.0,0.00047999,120]
[383877841,1757153444456,-500.0,0.00047999,120]
[383877844,1757153444465,-600.0,0.00047999,120]
[383877847,1757153444475,-277.35679052,0.00047999,120]
[383877850,1757153444484,-160.0,0.00047999,120]
[383877852,1757153444494,-151.0,0.00047999,120]
[383877854,1757153444505,-500.0,0.00047999,120]
[383877857,1757153444516,-600.0,0.00047999,120]
[383877859,1757153444527,-287.61899177,0.00047999,120]
[383877861,1757153444537,-520.0,0.00047999,120]
[383877863,1757153444547,-151.0,0.00047999,120]
[383877865,1757153444556,-600.0,0.00047999,120]
[383877867,1757153444565,-500.0,0.00047999,120]
[383877869,1757153444575,-300.0,0.00047999,120]
[383877871,1757153444584,-298.26089446,0.00047999,120]
[383877873,1757153444593,-151.0,0.00047999,120]
[383877875,1757153444602,-600.0,0.00047999,120]
[383877877,1757153444612,-539.24,0.00047999,120]
[383877879,1757153444621,-311.1,0.00047999,120]
[383877881,1757153444631,-500.0,0.00047999,120]
[383877883,1757153444640,-151.0,0.00047999,120]
[383877885,1757153444649,-600.0,0.00047999,120]
[383877887,1757153444659,-309.29654756,0.00047999,120]
[383877889,1757153444668,-322.6107,0.00047999,120]
[383877891,1757153444677,-559.19188,0.00047999,120]
[383877893,1757153444690,-500.0,0.00047999,120]
[383877895,1757153444700,-151.0,0.00047999,120]
[383877897,1757153444709,-600.0,0.00047999,120]
[383877899,1757153444719,-320.74051982,0.00047999,120]
[383877901,1757153444729,-579.88197956,0.00047999,120]
[383877903,1757153444738,-334.5472959,0.00047999,120]
[383877905,1757153444747,-151.0,0.00047999,120]
[383877907,1757153444757,-332.60791905,0.00047999,120]
[383877908,1757153444766,-500.0,0.00047999,120]
[383877911,1757153444776,-346.92554585,0.00047999,120]
[383877913,1757153444785,-601.3376128,0.00047999,120]
[383877914,1757153444795,-151.0,0.00047999,120]
[383877916,1757153444804,-344.91441206,0.00047999,120]
[383877919,1757153444814,-359.76179104,0.00047999,120]
[383877921,1757153444824,-623.58710448,0.00047999,120]
[383877923,1757153444833,-160.0,0.00047999,120]
[383877925,1757153444843,-500.0,0.00047999,120]
[383877927,1757153444853,-357.6762453,0.00047999,120]
[383877929,1757153444862,-270.20133101,0.00047999,120]
[383877931,1757153444872,-151.0,0.00047999,120]
[383877933,1757153444881,-557.74928318,0.00047999,120]
[383877935,1757153444890,-500.0,0.00047999,120]
[383877937,1757153444900,-370.91026638,0.00047999,120]
[383877939,1757153444911,-500.0,0.00047999,120]
[383877941,1757153444921,-151.0,0.00047999,120]
[383877943,1757153444931,-500.0,0.00047999,120]
[383877945,1757153444940,-384.63394623,0.00047999,120]
[383877947,1757153444950,-500.0,0.00047999,120]
[383877949,1757153444959,-398.86540225,0.00047999,120]
[383877951,1757153444969,-151.0,0.00047999,120]
[383877953,1757153444978,-500.0,0.00047999,120]
[383877955,1757153444987,-151.0,0.00047999,120]
[383877957,1757153444996,-500.0,0.00047999,120]
[383877959,1757153445006,-250.0,0.00047999,120]
[383877961,1757153445016,-500.0,0.00047999,120]
[383877963,1757153445030,-151.0,0.00047999,120]
[383877965,1757153445040,-250.0,0.00047999,120]
[383877967,1757153445050,-500.0,0.00047999,120]
[383877969,1757153445060,-500.0,0.00047999,120]
[383877971,1757153445071,-151.0,0.00047999,120]
[383877973,1757153445080,-500.0,0.00047999,120]
[383877975,1757153445090,-250.0,0.00047999,120]
[383877977,1757153445100,-151.0,0.00047999,120]
[383877979,1757153445110,-500.0,0.00047999,120]
[383877981,1757153445120,-151.0,0.00047999,120]
[383877984,1757153445129,-250.0,0.00047999,120]
[383877986,1757153445140,-151.0,0.00047999,120]
[383877988,1757153445149,-500.0,0.00047999,120]
[383877990,1757153445158,-151.0,0.00047999,120]
[383877992,1757153445168,-250.0,0.00047999,120]
[383877994,1757153445177,-151.0,0.00047999,120]
[383877996,1757153445187,-500.0,0.00047999,120]
[383877998,1757153445197,-151.0,0.00047999,120]
[383878000,1757153445207,-250.0,0.00047999,120]
[383878002,1757153445216,-500.0,0.00047999,120]
[383878004,1757153445226,-151.0,0.00047999,120]
[383878006,1757153445235,-250.0,0.00047999,120]
[383878008,1757153445245,-500.0,0.00047999,120]
[383878010,1757153445255,-250.0,0.00047999,120]
[383878012,1757153445264,-151.0,0.00047999,120]
[383878013,1757153445275,-500.0,0.00047999,120]
[383878016,1757153445285,-250.0,0.00047999,120]
[383878018,1757153445296,-500.0,0.00047999,120]
[383878020,1757153445306,-151.0,0.00047999,120]
[383878022,1757153445316,-250.0,0.00047999,120]
[383878024,1757153445328,-500.0,0.00047999,120]
[383878026,1757153445337,-151.0,0.00047999,120]
[383878028,1757153445347,-250.0,0.00047999,120]
[383878030,1757153445356,-151.0,0.00047999,120]
[383878032,1757153445365,-250.0,0.00047999,120]
[383878034,1757153445374,-151.0,0.00047999,120]
[383878036,1757153445383,-500.0,0.00047999,120]
[383878038,1757153445395,-250.0,0.00047999,120]
[383878040,1757153445405,-151.0,0.00047999,120]
[383878042,1757153445414,-151.0,0.00047999,120]
[383878044,1757153445423,-500.0,0.00047999,120]
[383878046,1757153445433,-156.587,0.00047999,120]
[383878048,1757153445442,-151.0,0.00047999,120]
[383878050,1757153445451,-500.0,0.00047999,120]
[383878051,1757153445461,-162.380719,0.00047999,120]
[383878053,1757153445470,-151.0,0.00047999,120]
[383878055,1757153445480,-500.0,0.00047999,120]
[383878057,1757153445489,-168.3888056,0.00047999,120]
[383878060,1757153445499,-151.0,0.00047999,120]
[383878062,1757153445509,-500.0,0.00047999,120]
[383878064,1757153445518,-151.0,0.00047999,120]
[383878066,1757153445528,-174.61919141,0.00047999,120]
[383878068,1757153445538,-151.0,0.00047999,120]
[383878070,1757153445548,-500.0,0.00047999,120]
[383878072,1757153445558,-151.0,0.00047999,120]
[383878074,1757153445569,-500.0,0.00047999,120]
[383878076,1757153445579,-181.08010149,0.00047999,120]
[383878078,1757153445589,-151.0,0.00047999,120]
[383878080,1757153445599,-500.0,0.00047999,120]
[383878082,1757153445609,-151.0,0.00047999,120]
[383878084,1757153445619,-500.0,0.00047999,120]
[383878086,1757153445629,-500.0,0.00047999,120]
[383878088,1757153445638,-151.0,0.00047999,120]
[383878090,1757153445648,-270.54895286,0.00047999,120]
[383878092,1757153445657,-500.0,0.00047999,120]
[383878094,1757153445666,-187.78006526,0.00047999,120]
[383878096,1757153445675,-151.0,0.00047999,120]
[383878098,1757153445685,-500.0,0.00047999,120]
[383878100,1757153445694,-500.0,0.00047999,120]
[383878102,1757153445704,-500.0,0.00047999,120]
[383878104,1757153445713,-151.0,0.00047999,120]
[383878106,1757153445722,-500.0,0.00047999,120]
[383878108,1757153445731,-500.0,0.00047999,120]
[383878110,1757153445740,-500.0,0.00047999,120]
[383878112,1757153445750,-151.0,0.00047999,120]
[383878114,1757153445759,-500.0,0.00047999,120]
[383878116,1757153445769,-151.0,0.00047999,120]
[383878118,1757153445778,-500.0,0.00047999,120]
[383878120,1757153445788,-500.0,0.00047999,120]
[383878122,1757153445798,-179523.3038379,0.00048,120]
[383878124,1757153445808,-440.54670754,0.00048,30]
[383878126,1757153445817,-317.36524323,0.00048,30]
[383878128,1757153445827,-256.745467,0.00048,120]
[383878131,1757153445846,-200.0,0.00048,7]
[383878133,1757153445857,-10721.96222492,0.00048,120]
[383878148,1757153445986,-1203.75491125,0.00048,120]
[383878150,1757153445995,-248.93759587,0.00048,120]
[383878152,1757153446005,-205697.58753621,0.00048,120]
[383878154,1757153446014,-240.0,0.00048,7]
[383878156,1757153446027,-1499.41,0.00048,14]
[383878158,1757153446036,-189.13763185,0.00048006,28]
[383878160,1757153446046,-528.0,0.00048075,15]
[383878162,1757153446055,-154.0,0.000482,120]
[383878164,1757153446064,-4000.0,0.00048215,120]
[383878166,1757153446074,-498.0,0.0004822,2]
[383878168,1757153446083,-522.79305568,0.00048318,52]
[383878170,1757153446093,-528.0,0.00048349,15]
[383878172,1757153446102,-155.82462853,0.0004835,2]
[383878174,1757153446111,-500.0,0.00048421,10]
[383878176,1757153446121,-1000.29937495,0.00048421,10]
[383878178,1757153446131,-310.88385548,0.00048478,120]
[383878180,1757153446140,-200.0,0.0004848,7]
[383878182,1757153446149,-498.0,0.00048494,2]
[383878184,1757153446159,-199.0,0.00048576,9]
[383878186,1757153446169,-165.00297054,0.00048592,15]
[383878188,1757153446178,-346.10407904,0.000486,120]
[383878190,1757153446188,-1499.41,0.000486,14]
[383878192,1757153446198,-528.0,0.00048623,15]
[383878194,1757153446208,-236.40690906,0.000487,120]
[383878196,1757153446218,-500.0,0.00048719,30]
[383878198,1757153446229,-500.0,0.00048767,110]
[383878199,1757153446239,-802.0,0.00048767,30]
[383878202,1757153446249,-802.0,0.00048767,30]
[383878204,1757153446260,-802.0,0.00048767,30]
[383878205,1757153446270,-802.0,0.00048767,30]
[383878208,1757153446279,-802.0,0.00048767,30]
[383878209,1757153446289,-802.0,0.00048767,30]
[383878210,1757153446299,-498.0,0.00048768,2]
[383878211,1757153446310,-150.0,0.00048773,10]
[383878212,1757153446320,-487.06402554,0.0004878,120]
[383878213,1757153446329,-15745.09502048,0.000488,120]
[383878214,1757153446339,-19952.09034975,0.000488,120]
[383878215,1757153446349,-5100.0,0.000488,37]
[383878216,1757153446358,-1000.0,0.000488,17]
[383878217,1757153446367,-910.81523194,0.00048821,15]
[383878218,1757153446377,-150.0,0.00048879,120]
[383878219,1757153446386,-5014.73384122,0.0004888,120]
[383878220,1757153446396,-883917.60914906,0.0004888,120]
[383878221,1757153446405,-700.0,0.0004888,120]
[383878223,1757153446414,-445.13355268,0.00048885,120]
[383878224,1757153446424,-528.0,0.00048897,15]
[383878226,1757153446433,-333.3435187,0.00048899,34]
[383878228,1757153446442,-984.5,0.000489,30]
[383878230,1757153446453,-208.29,0.000489,30]
[383878232,1757153446463,-1300.0,0.000489,17]
[383878234,1757153446472,-253.67754018,0.00049,120]
[383878236,1757153446482,-488.08428686,0.00049,120]
[383878238,1757153446492,-343.25294458,0.00049,30]
[383878240,1757153446501,-20000.0,0.00049,120]
[383878242,1757153446510,-168.38,0.00049,30]
[383878244,1757153446519,-846.18,0.00049041,30]
[383878246,1757153446528,-470.72,0.00049041,30]
[383878248,1757153446538,-802.0,0.00049041,30]
[383878250,1757153446549,-470.72,0.00049041,30]
[383878252,1757153446560,-802.0,0.00049041,30]
[383878254,1757153446570,-470.72,0.00049041,30]
[383878256,1757153446581,-802.0,0.00049041,30]
[383878258,1757153446592,-470.72,0.00049041,30]
[383878260,1757153446605,-802.0,0.00049041,30]
[383878262,1757153446620,-802.0,0.00049041,30]
[383878264,1757153446630,-802.0,0.00049041,30]
[383878266,1757153446639,-166.62,0.00049041,30]
[383878268,1757153446648,-174.35,0.00049041,30]
[383878270,1757153446657,-409.88,0.00049041,30]
[383878272,1757153446665,-150.0,0.00049041,30]
[383878274,1757153446675,-166.62,0.00049041,30]
[383878276,1757153446685,-174.35,0.00049041,30]
[383878278,1757153446694,-150.0,0.00049041,30]
[383878280,1757153446704,-166.62,0.00049041,30]
[383878282,1757153446713,-409.88,0.00049041,30]
[383878284,1757153446722,-166.62,0.00049041,30]
[383878286,1757153446732,-150.0,0.00049041,30]
[383878288,1757153446741,-409.88,0.00049041,30]
[383878290,1757153446750,-174.35,0.00049041,30]
[383878292,1757153446760,-174.35,0.00049041,30]
[383878294,1757153446770,-150.0,0.00049041,30]
[383878296,1757153446780,-409.88,0.00049041,30]
[383878299,1757153446789,-541.44,0.00049041,30]
[383878301,1757153446800,-409.88,0.00049041,30]
[383878303,1757153446810,-174.35,0.00049041,30]
[383878305,1757153446819,-541.44,0.00049041,30]
[383878307,1757153446829,-174.35,0.00049041,30]
[383878309,1757153446839,-409.88,0.00049041,30]
[383878311,1757153446848,-541.44,0.00049041,30]
[383878313,1757153446858,-174.35,0.00049041,30]
[383878315,1757153446867,-541.44,0.00049041,30]
[383878317,1757153446876,-174.35,0.00049041,30]
[383878320,1757153446886,-174.35,0.00049041,30]
[383878322,1757153446899,-541.44,0.00049041,30]
[383878324,1757153446909,-541.44,0.00049041,30]
[383878326,1757153446918,-174.35,0.00049041,30]
[383878328,1757153446928,-498.0,0.00049041,2]
[383878330,1757153446941,-40630.83816712,0.00049047,120]
[383878332,1757153446951,-476.18,0.00049068,30]
[383878334,1757153446961,-576.69,0.00049076,120]
[383878336,1757153446970,-528.0,0.00049171,15]
[383878338,1757153446979,-1499.41,0.000492,14]
[383878340,1757153446989,-5773.73217034,0.00049258,120]
[383878342,1757153446999,-199.0,0.00049261,11]
[383878344,1757153447008,-300.0,0.00049315,30]
[383878346,1757153447022,-300.0,0.00049315,30]
[383878348,1757153447035,-158.126981,0.00049315,120]
[383878351,1757153447046,-400.0,0.00049315,120]
[383878353,1757153447057,-411.76660259,0.00049315,120]
[383878355,1757153447067,-409.93436538,0.00049315,120]
[383878357,1757153447076,-414.47325978,0.00049315,120]
[383878359,1757153447085,-400.0,0.00049315,120]
[383878361,1757153447095,-400.0,0.00049315,120]
[383878363,1757153447105,-400.0,0.00049315,120]
[383878365,1757153447115,-400.82343667,0.00049315,120]
[383878367,1757153447125,-400.0,0.00049315,120]
[383878369,1757153447135,-400.0,0.00049315,120]
[383878371,1757153447145,-401.46553936,0.00049315,120]
[383878373,1757153447154,-400.0,0.00049315,120]
[383878375,1757153447163,-400.0,0.00049315,120]
[383878377,1757153447174,-400.0,0.00049315,120]
[383878379,1757153447183,-400.0,0.00049315,120]
[383878381,1757153447193,-400.0,0.00049315,120]
[383878383,1757153447203,-400.0,0.00049315,120]
[383878385,1757153447213,-400.0,0.00049315,120]
[383878387,1757153447223,-409.94741161,0.00049315,120]
[383878389,1757153447232,-401.33778397,0.00049315,120]
[383878391,1757153447241,-400.0,0.00049315,120]
[383878393,1757153447252,-157.23860949,0.00049315,120]
[383878395,1757153447261,-402.94064489,0.00049315,120]
[383878397,1757153447270,-293.68594054,0.00049315,120]
[383878399,1757153447279,-460.0,0.00049315,120]
[383878401,1757153447288,-208.42730606,0.00049315,120]
[383878403,1757153447298,-400.0,0.00049315,120]
[383878405,1757153447307,-400.0,0.00049315,2]
[383878407,1757153447316,-400.0,0.00049315,120]
[383878409,1757153447326,-400.0,0.00049315,2]
[383878411,1757153447335,-400.0,0.00049315,120]
[383878413,1757153447344,-400.0,0.00049315,120]
[383878415,1757153447354,-404.06390086,0.00049315,120]
[383878417,1757153447363,-400.0,0.00049315,120]
[383878419,1757153447373,-319.54992205,0.00049315,120]
[383878421,1757153447382,-400.0,0.00049315,120]
[383878423,1757153447392,-400.0,0.00049315,120]
[383878424,1757153447402,-548.48,0.00049315,120]
[383878426,1757153447412,-402.51010741,0.00049315,120]
[383878428,1757153447423,-400.0,0.00049315,120]
[383878430,1757153447432,-151.0,0.00049315,120]
[383878432,1757153447441,-405.12391971,0.00049315,120]
[383878434,1757153447450,-400.0,0.00049315,120]
[383878436,1757153447459,-151.524158,0.00049315,120]
[383878438,1757153447469,-400.0,0.00049315,120]
[383878440,1757153447479,-400.0,0.00049315,120]
[383878442,1757153447489,-400.0,0.00049315,120]
[383878445,1757153447498,-400.0,0.00049315,120]
[383878447,1757153447509,-400.0,0.00049315,120]
[383878449,1757153447519,-509.12251161,0.00049315,120]
[383878451,1757153447529,-400.0,0.00049315,120]
[383878453,1757153447539,-400.0,0.00049315,120]
[383878455,1757153447549,-402.52317558,0.00049315,120]
[383878457,1757153447558,-400.79688209,0.00049315,120]
[383878459,1757153447567,-151.0,0.00049315,120]
[383878461,1757153447577,-400.0,0.00049315,120]
[383878463,1757153447586,-400.0,0.00049315,120]
[383878465,1757153447597,-400.0,0.00049315,120]
[383878467,1757153447606,-257.52717466,0.00049315,120]
[383878469,1757153447616,-500.0,0.00049315,120]
[383878471,1757153447625,-360.10802821,0.00049315,120]
[383878473,1757153447634,-400.0,0.00049315,120]
[383878475,1757153447644,-400.0,0.00049315,120]
[383878477,1757153447653,-400.0,0.00049315,120]
[383878479,1757153447662,-400.0,0.00049315,120]
[383878481,1757153447672,-400.0,0.00049315,120]
[383878483,1757153447681,-400.0,0.00049315,120]
[383878485,1757153447693,-656.24,0.00049315,120]
[383878487,1757153447703,-400.0,0.00049315,120]
[383878489,1757153447712,-400.0,0.00049315,120]
[383878491,1757153447721,-400.0,0.00049315,120]
[383878493,1757153447731,-400.0,0.00049315,120]
[383878495,1757153447740,-1000.0,0.00049315,120]
[383878497,1757153447749,-400.0,0.00049315,120]
[383878499,1757153447758,-400.0,0.00049315,120]
[383878501,1757153447766,-400.0,0.00049315,120]
[383878503,1757153447775,-400.0,0.00049315,120]
[383878505,1757153447786,-400.0,0.00049315,120]
[383878507,1757153447800,-400.0,0.00049315,7]
[383878509,1757153447810,-151.0,0.00049315,120]
[383878511,1757153447819,-400.0,0.00049315,120]
[383878514,1757153447829,-293.715389,0.00049315,120]
[383878516,1757153447838,-151.0,0.00049315,120]
[383878518,1757153447848,-400.0,0.00049315,120]
[383878520,1757153447858,-151.0,0.00049315,120]
[383878522,1757153447868,-400.0,0.00049315,120]
[383878524,1757153447878,-151.817612,0.00049315,120]